Cogmind - Beta 13 *** ADVENTURER MODE // 2024.04.10 @ 00:27:55 Player: XorOwl Result: Destroyed by H-66 Slayer with Gauss Rifle Performance ------------- Evolutions (5) 2500 Regions Visited (10) 2000 Robots Destroyed (110) 550 Value Destroyed (3696) 3696 Prototype IDs (7) 140 Alien Tech Used (0) 0 Bonus (13) 13 TOTAL SCORE: 8899 Bonus ------- High Alert Combat Kills 13 Cogmind --------- Core Integrity 0/1000 Matter 290/300 Energy 89/100 System Corruption 17% Temperature Cool (0) Movement Core (50) Location -5/Factory Parts ------- > --- POWER (2) -------- (None) > --- PROPULSION (5) --- (None) > --- UTILITY (8) ------ Improved Transmission Jammer > --- WEAPON (2) ------- (None) > --- INVENTORY (5) ---- (None) Peak State ------------ > --- POWER ------------ Light Deuterium Engine > --- PROPULSION ------- Cooled Cesium-ion Thruster Cooled Cesium-ion Thruster Cooled Cesium-ion Thruster Cooled Cesium-ion Thruster Cooled Cesium-ion Thruster > --- UTILITY ---------- Power Amplifier Improved Heat Sink High-capacity Storage Unit Machine Analyzer Improved Melee Analysis Suite Phase Shifter Improved Hacking Suite System Shield > --- WEAPON ----------- Heavy Missile Launcher Spear > --- INVENTORY -------- Nuclear Pulse Thruster Cooled Cesium-ion Thruster Coolant Injector High-capacity Battery High-capacity Matter Pod ECM Suite Plasma Cannon Remote Datajack [Rating: 72] Favorites ----------- Power Micro Nuclear Core Engine Ion Engine Power Core Micro Nuclear Core Propulsion Compact Wheel Treads Light Treads Leg Flexi-carbon Leg Wheel Compact Wheel Hover Unit Gravmag System Flight Unit Makeshift Flight Unit Utility Targeting Computer Device ECM Suite Storage High-capacity Storage Unit Processor Targeting Computer Hackware Improved Hacking Suite Protection Improved Medium Armor Plating Weapon Power Sword Energy Gun Improved Medium Laser Energy Cannon Plasma Cannon Ballistic Gun High-powered Shotgun Ballistic Cannon Enhanced Gauss Cannon Launcher Grenade Launcher Special Weapon Remote Datajack Impact Weapon Heavy Mace Slashing Weapon Power Sword Piercing Weapon Spear Build | -11 -10 -9 -8 -7 -7 -7 -6 -5 -5 -5 ------- Run | Yrd Mat Mat Mat Fac Low Low Fac Fac Was Fac Slots Evolved 10 | . . 2 2 2 . . 2 2 . . Power 1 | . . . . 1 . . . . . . Propulsion 3 | . . 2 . 1 . . . . . . Utility 6 | . . . 2 . . . 2 2 . . Weapon . | . . . . . . . . . . . Parts Attached 196 | 6 3 7 13 36 8 . 79 2 13 29 Power 18 | 1 . 1 1 5 . . 4 1 . 5 Engine 6 | 1 . 1 . 1 . . 1 1 . 1 Core 12 | . . . 1 4 . . 3 . . 4 Reactor . | . . . . . . . . . . . Propulsion 67 | 2 . 1 2 12 5 . 34 . 7 4 Treads 4 | 2 . . . . . . 1 . . 1 Leg 16 | . . . . . . . 15 . 1 . Wheel 12 | . . . . 7 . . 5 . . . Hover 4 | . . . . 1 . . 3 . . . Flight 31 | . . 1 2 4 5 . 10 . 6 3 Utility 57 | 1 3 . 5 7 1 . 22 1 4 13 Device 27 | . 1 . 1 4 1 . 11 . 2 7 Storage 16 | 1 1 . 4 . . . 3 . 2 5 Processor 9 | . 1 . . 1 . . 5 1 . 1 Hackware 4 | . . . . 1 . . 3 . . . Protection 1 | . . . . 1 . . . . . . Artifact . | . . . . . . . . . . . Weapon 54 | 2 . 5 5 12 2 . 19 . 2 7 Energy Gun 1 | . . 1 . . . . . . . . Energy Cannon 11 | . . . 1 . . . 6 . . 4 Ballistic Gun 13 | 2 . 2 4 4 . . 1 . . . Ballistic Cannon 3 | . . . . . . . . . . 3 Launcher 10 | . . 2 . 4 2 . 1 . 1 . Special Weapon 3 | . . . . . . . 3 . . . Impact Weapon 4 | . . . . 4 . . . . . . Slashing Weapon 8 | . . . . . . . 8 . . . Piercing Weapon 1 | . . . . . . . . . 1 . Special Melee Weapon . | . . . . . . . . . . . Unidentified Prototypes 6 | . . 2 1 1 . . 1 . . 1 Parts Lost 72 | . . . . 15 . . 28 . 1 28 Power 12 | . . . . 2 . . 5 . 1 4 Propulsion 28 | . . . . 7 . . 14 . . 7 Utility 21 | . . . . 4 . . 5 . . 12 Weapon 11 | . . . . 2 . . 4 . . 5 Highest Loss Streak 13 | . . . . 10 . . 5 . 1 13 To Critical Strikes . | . . . . . . . . . . . Average Slot Usage (%) 82 | . 91 82 89 76 97 100 87 71 86 50 Engine 2 | . 14 11 7 3 . . . 3 4 . Core 6 | . . . 1 4 15 15 8 . . 3 Treads 4 | . 28 22 14 . . . . . . . Leg 6 | . . . . . . . 12 11 2 . Wheel 5 | . . . . 11 5 . 6 5 1 . Hover 2 | . . . . . . . 5 . . . Flight 7 | . . 5 16 14 30 38 2 . 22 12 Device 8 | . 5 11 13 7 15 15 8 5 12 7 Storage 5 | . 8 . 13 6 . . 6 5 8 9 Processor 12 | . 5 11 9 3 7 7 17 14 12 5 Hackware 4 | . . . . 4 . . 5 11 11 3 Ballistic Gun 3 | . 28 7 7 7 3 . . . . . Launcher 3 | . . 14 6 . 11 15 1 . 3 1 Slashing Weapon 2 | . . . . . . . 5 5 . . Naked Turns . | . . . . . . . . . . . Heaviest Build 67 | 11 26 12 34 28 35 35 67 59 24 32 Greatest Support 100 | 40 40 40 40 66 50 40 100 40 24 28 Greatest Overweight (x) 7 | . . . 1 4 1 . 7 1 . 7 Average Overweight (x) . | . . . . . . . . 1 . . Largest Inventory Capacity 20 | 8 15 5 15 5 5 5 20 20 20 20 Average Capacity 12 | 6 9 5 10 5 5 5 18 20 11 5 Most Carried 20 | 5 3 5 6 5 5 5 20 19 18 5 Average Carried 11 | . 1 4 3 4 4 5 17 18 8 4 Final Capacity 20 | 8 5 5 5 5 5 5 20 20 5 5 Final Carried 18 | . 3 5 5 5 5 5 18 18 5 . Class Distribution -------------------- 42% | Scavenger-Mutant 24% | Mutant 12% | Hacker-Mutant 6% | Derelict-Mutant 5% | Hacker-Sprinter 4% | Gladiator Dominant Class ---------------- Mutant | -10/Materials Mutant | -9/Materials Mutant | -8/Materials Hacker-Mutant | -7/Factory Derelict-Mutant | -7/Lower Caves Derelict-Mutant | -7/Lower Caves Scavenger-Mutant | -6/Factory Hacker-Mutant | -5/Factory Hacker-Sprinter | -5/Waste Mutant | -5/Factory Resources | -11 -10 -9 -8 -7 -7 -7 -6 -5 -5 -5 ----------- Run | Yrd Mat Mat Mat Fac Low Low Fac Fac Was Fac Matter Collected 2770 | 260 78 176 11 888 10 . 1057 25 . 265 Remotely 80 | . . . . 80 . . . . . . Salvage Created 4532 | . 104 330 58 776 . . 2908 31 . 325 Parts 207 | . 17 21 4 37 . . 117 3 . 8 Haulers Intercepted 3 | . . . . . . . 2 . . 1 Recyclers Shooed 3 | . 1 . . . . . 2 . . . Parts Field Recycled . | . . . . . . . . . . . Retrieved Matter . | . . . . . . . . . . . Parts Self-Destructed . | . . . . . . . . . . . Prevented . | . . . . . . . . . . . Kills | -11 -10 -9 -8 -7 -7 -7 -6 -5 -5 -5 ------- Run | Yrd Mat Mat Mat Fac Low Low Fac Fac Was Fac Combat Hostiles Destroyed 76 | . 3 9 7 16 . . 38 . . 3 Melee 34 | . . . . 6 . . 27 . . 1 Guns 13 | . 3 5 . 5 . . . . . . Cannons 5 | . . . . . . . 4 . . 1 AOE 19 | . . 4 7 2 . . 6 . . . Classes Destroyed 15 | . 3 4 1 6 . . 1 . . . Worker 3 | . . . . 3 . . . . . . Builder 4 | . 1 . . 3 . . . . . . Tunneler 4 | . . 1 . 2 . . 1 . . . Hauler 3 | . . . . . . . 2 . . 1 Recycler 7 | . . . . 1 . . 6 . . . Mechanic 2 | . . . . 1 . . . . . 1 Operator 2 | . . . . 2 . . . . . . Watcher 9 | . 2 2 . . . . 3 1 . 1 Swarmer 25 | . 3 3 4 5 . . 10 . . . Grunt 18 | . . 3 2 3 . . 10 . . . Brawler 1 | . . . 1 . . . . . . . Duelist 3 | . . 1 . . . . 2 . . . Sentry 12 | . . 2 . 3 . . 6 . . 1 Hunter 3 | . . . . 1 . . 2 . . . Programmer 14 | . . . . 4 . . 8 . . 2 Best Kill Streak 7 | . 2 5 7 7 . . 5 1 . 2 Combat Bots Only 7 | . 2 4 7 3 . . 4 . . 2 Max Kills in Single Turn 3 | . 1 2 3 1 . . 2 1 . 1 Gunslinging . | . . . . . . . . . . . Exploded 3 | . . 2 3 1 . . 2 . . . Melee 1 | . . . . 1 . . 1 . . 1 Uniques/NPCs Destroyed . | . . . . . . . . . . . Combat | -11 -10 -9 -8 -7 -7 -7 -6 -5 -5 -5 -------- Run | Yrd Mat Mat Mat Fac Low Low Fac Fac Was Fac Hostile Shots Fired 1059 | . 10 42 7 234 . . 537 . 1 228 Missed 375 | . 3 5 3 93 . . 188 . . 83 Damage Taken 8020 | . 37 400 40 1306 . . 3680 . 40 2517 Core 2049 | . 4 101 21 252 . . 664 . 40 967 Absorbed by Shields 47 | . . . . . . . 47 . . . Ignored by Resistances 2319 | . 14 118 11 383 . . 1085 . 10 698 Core Remaining (%) 75 | 100 98 74 96 . . 64 21 . . . Volleys Fired 119 | . 12 25 4 25 . . 29 3 . 21 Largest 2 | . 2 2 2 2 . . 2 1 . 2 Hottest 137 | . 40 60 60 60 . . 90 90 . 137 Shots Fired 195 | . 24 50 8 42 1 . 34 3 . 33 Gun 96 | . 24 44 2 26 . . . . . . Cannon 50 | . . . . . . . 15 3 . 32 Launcher 44 | . . 6 6 16 1 . 14 . . 1 Special 5 | . . . . . . . 5 . . . Kinetic 114 | . 24 44 2 26 . . . . . 18 Thermal 31 | . . . . . . . 15 3 . 13 Explosive 33 | . . 6 6 16 . . 4 . . 1 Electromagnetic 12 | . . . . . 1 . 10 . . 1 Robot Hit Streak 25 | . 15 25 12 13 . . 17 1 . 6 Robot Miss Streak 4 | . 2 2 3 4 . . 3 . . 2 Penetration Max . | . . . . . . . . . . . Secondary Targets 5 | . 2 2 . 1 . . . . . . Max Gunslinging Chain 1 | . 1 1 . 1 . . . . . . Shots Hit Robots 317 | . 17 45 3 72 . . 142 1 . 37 Core Hits 154 | . 9 17 19 36 . . 63 1 . 9 Critical Kills 3 | . . 1 . 2 . . . . . . Critical Parts Destroyed 5 | . . . . 5 . . . . . . Critical Strikes 29 | . . 1 . 7 . . 16 . . 5 Destroy 1 | . . 1 . . . . . . . . Blast 4 | . . . . . . . . . . 4 Smash 7 | . . . . 7 . . . . . . Sever 16 | . . . . . . . 16 . . . Impale 1 | . . . . . . . . . . 1 Melee Attacks 209 | . . . . 41 . . 152 1 . 15 Impact 41 | . . . . 41 . . . . . . Slashing 153 | . . . . . . . 152 1 . . Piercing 15 | . . . . . . . . . . 15 Sneak Attacks 21 | . . . . 7 . . 11 . . 3 Combat Hostiles . | . . . . . . . . . . . Follow-up Attacks . | . . . . . . . . . . . Damage Inflicted 12143 | . 193 880 525 2573 . . 6526 33 . 1413 Guns 1107 | . 193 508 17 389 . . . . . . Cannons 1103 | . . . . . . . 276 33 . 794 Explosions 2057 | . . 372 508 382 . . 760 . . 35 Melee 7876 | . . . . 1802 . . 5490 . . 584 Ramming . | . . . . . . . . . . . Kinetic 1525 | . 193 508 17 389 . . . . . 418 Thermal 648 | . . . . . . . 276 33 . 339 Explosive 1830 | . . 372 508 382 . . 533 . . 35 Electromagnetic 264 | . . . . . . . 227 . . 37 Impact 1802 | . . . . 1802 . . . . . . Slashing 5490 | . . . . . . . 5490 . . . Piercing 584 | . . . . . . . . . . 584 Highest Corruption 17 | . . . . 7 7 7 5 . 6 17 Average Corruption 4 | . . . . 7 7 7 2 . 6 6 Corruption Purged 7 | . . . . . . . 7 . . . Corruption Blocked . | . . . . . . . . . . . Effects 70 | . . . . 17 7 1 32 . . 13 Message Errors 17 | . . . . 4 1 1 6 . . 5 Matter Fused 15 | . . . . 4 2 . 5 . . 4 Heat Flow Errors 13 | . . . . 2 2 . 8 . . 1 Energy Discharges 8 | . . . . 4 1 . 3 . . . Parts Rejected 1 | . . . . . . . 1 . . . Parts Fused 1 | . . . . . . . 1 . . . Data Loss (minor) 5 | . . . . . . . 4 . . 1 Data Loss (major) 2 | . . . . . . . 2 . . . Misfires 4 | . . . . 3 1 . . . . . Alerts 2 | . . . . . . . 2 . . . Misdirections 1 | . . . . . . . . . . 1 Weapon Failures 1 | . . . . . . . . . . 1 Overload Shots . | . . . . . . . . . . . Overflow Damage 1325 | . . 46 30 735 . . 463 . . 51 Projectiles 24 | . . . . . . . . . . 24 Explosions 113 | . . 46 30 . . . 37 . . . Melee 1188 | . . . . 735 . . 426 . . 27 Knockbacks 10 | . . . . 6 . . . . . 4 Impact 6 | . . . . 6 . . . . . . Kinetic 4 | . . . . . . . . . . 4 Secondary . | . . . . . . . . . . . Self-Inflicted Damage 38 | . . 6 . 28 . . 4 . . . Shots 3 | . . 1 . 1 . . 1 . . . Rammed . | . . . . . . . . . . . Targets Rammed . | . . . . . . . . . . . Kicked . | . . . . . . . . . . . Crushed . | . . . . . . . . . . . Highest Temperature 360 | . . 6 3 200 266 149 270 22 . 360 Average Temperature 89 | . . 4 3 45 104 75 82 13 . 120 Received Heat Transfer 1845 | . . 162 18 207 . . 1209 . . 249 Effects 6 | . . . . . 4 . 1 . . 1 Energy Bleed 5 | . . . . . 3 . 1 . . 1 Interference 1 | . . . . . 1 . . . . . Siege Activations . | . . . . . . . . . . . Robots Corrupted 1 | . . . . . . . 1 . . . Combat Hostiles 1 | . . . . . . . 1 . . . Parts Fried 18 | . . . . 17 . . 1 . . . Impact Corruptions 24 | . . . . 24 . . . . . . Robots Melted 1 | . . . . . . . . . . 1 Combat Hostiles 1 | . . . . . . . . . . 1 Parts Melted 3 | . . . . . . . 2 1 . . Heat Transferred 1087 | . . . . . . . 487 50 . 550 Parts Sabotaged . | . . . . . . . . . . . Parts Stolen . | . . . . . . . . . . . Parts Stripped . | . . . . . . . . . . . Power Chain Reactions . | . . . . . . . . . . . Alert | -11 -10 -9 -8 -7 -7 -7 -6 -5 -5 -5 ------- Run | Yrd Mat Mat Mat Fac Low Low Fac Fac Was Fac Peak Influence 489 | . 77 176 229 489 . . 206 17 19 101 Initial 89 | . . 27 51 89 . . 9 6 4 5 Average 73 | . 31 100 203 111 . . 66 12 6 33 Maximum Alert Level 2 | . . . 1 2 . . 1 . . . Low Security (%) 93 | 100 100 100 16 75 . . 98 100 100 100 Level 1 5 | . . . 83 21 . . 1 . . . Level 2 . | . . . . 3 . . . . . . Level 3 . | . . . . . . . . . . . Level 4 . | . . . . . . . . . . . Level 5 . | . . . . . . . . . . . High Security . | . . . . . . . . . . . Max Security . | . . . . . . . . . . . Squads Dispatched 18 | . . . . 4 . . 10 . . 4 Investigation 3 | . . . . . . . 1 . . 2 Extermination 10 | . . . . 2 . . 7 . . 1 Reinforcement 5 | . . . . 2 . . 2 . . 1 Assault . | . . . . . . . . . . . Garrison . | . . . . . . . . . . . Intercept . | . . . . . . . . . . . Searches Triggered . | . . . . . . . . . . . Construction Impeded 1 | . . . . 1 . . . . . . Haulers Reinforced . | . . . . . . . . . . . Active Scanning Responses . | . . . . . . . . . . . Cargo Convoy Interrupts . | . . . . . . . . . . . Stealth | -11 -10 -9 -8 -7 -7 -7 -6 -5 -5 -5 --------- Run | Yrd Mat Mat Mat Fac Low Low Fac Fac Was Fac Distress Signals 3 | . 1 1 . . . . . . . 1 Communications Jammed 1 | . . . . . . . . . . 1 Distress Signals . | . . . . . . . . . . . Times Spotted 137 | . 6 12 10 23 . . 68 . 5 13 Peak Tracking Total 7 | . 2 3 6 4 . . 7 . 5 4 Tactical Retreats 15 | . . . . 3 . . 8 . . 4 Traps | -11 -10 -9 -8 -7 -7 -7 -6 -5 -5 -5 ------- Run | Yrd Mat Mat Mat Fac Low Low Fac Fac Was Fac Traps Triggered 13 | . . . . 1 . . 10 1 . 1 Indirectly . | . . . . . . . . . . . Trap Hack Attempts . | . . . . . . . . . . . Triggered . | . . . . . . . . . . . Disarmed . | . . . . . . . . . . . Reprogrammed . | . . . . . . . . . . . Reused . | . . . . . . . . . . . Traps Extracted . | . . . . . . . . . . . Installed . | . . . . . . . . . . . Triggered . | . . . . . . . . . . . Machines | -11 -10 -9 -8 -7 -7 -7 -6 -5 -5 -5 ---------- Run | Yrd Mat Mat Mat Fac Low Low Fac Fac Was Fac Machines Disabled 4 | . . . 1 2 . . 1 . . . Max in Single Turn 1 | . . . 1 1 . . 1 . . . Machines Repaired . | . . . . . . . . . . . Machines Dismantled . | . . . . . . . . . . . Machines Sabotaged . | . . . . . . . . . . . Overloaded Fab Kills . | . . . . . . . . . . . Hacking | -11 -10 -9 -8 -7 -7 -7 -6 -5 -5 -5 --------- Run | Yrd Mat Mat Mat Fac Low Low Fac Fac Was Fac Machines Accessed 23 | . 1 3 . 6 1 . 7 1 . 4 Terminals 19 | . 1 3 . 6 . . 5 1 . 3 Fabricators . | . . . . . . . . . . . Repair Stations . | . . . . . . . . . . . Recycling Units 2 | . . . . . . . 2 . . . Scanalyzers . | . . . . . . . . . . . Garrison Access 1 | . . . . . . . . . . 1 Total Hacks 59 | . 1 8 . 20 1 . 14 4 . 11 Successful 27 | . 1 3 . 8 1 . 5 4 . 5 Failed 32 | . . 5 . 12 . . 9 . . 6 Catastrophic 7 | . . 3 . 2 . . 2 . . . Database Lockouts . | . . . . . . . . . . . Manual 14 | . . 4 . 8 . . 2 . . . Terminals 52 | . 1 8 . 20 . . 11 4 . 8 Fabricators . | . . . . . . . . . . . Repair Stations . | . . . . . . . . . . . Recycling Units 3 | . . . . . . . 3 . . . Scanalyzers . | . . . . . . . . . . . Garrison Access 3 | . . . . . . . . . . 3 Terminal Hacks 24 | . 1 3 . 8 1 . 2 4 . 5 Record 6 | . . . . . . . 1 3 . 2 Robot Analysis 1 | . . . . 1 . . . . . . Prototype ID Bank 1 | . . 1 . . . . . . . . Open Door 1 | . . . . . 1 . . . . . Level Access Points 1 | . . 1 . . . . . . . . Alert Level 5 | . . 1 . 2 . . . 1 . 1 Unreport Threat 7 | . 1 . . 3 . . 1 . . 2 Locate Traps 1 | . . . . 1 . . . . . . Hauler Manifests 1 | . . . . 1 . . . . . . Fabricator Hacks . | . . . . . . . . . . . Repair Station Hacks . | . . . . . . . . . . . Recycling Unit Hacks 3 | . . . . . . . 3 . . . Report Inventory 2 | . . . . . . . 2 . . . Retrieve Components 1 | . . . . . . . 1 . . . Scanalyzer . | . . . . . . . . . . . Garrison Access Hacks . | . . . . . . . . . . . Unauthorized Hacks . | . . . . . . . . . . . Terminals . | . . . . . . . . . . . Fabricators . | . . . . . . . . . . . Repair Stations . | . . . . . . . . . . . Recycling Units . | . . . . . . . . . . . Scanalyzers . | . . . . . . . . . . . Garrison Access . | . . . . . . . . . . . Data Cores Recovered 2 | . . . . 2 . . . . . . Used 1 | . . . . 1 . . . . . . Hacking Detections 19 | . 1 3 . 5 . . 5 1 . 4 Full Trace Events 3 | . . 1 . . . . . . . 2 Feedback Events . | . . . . . . . . . . . Feedback Blocked . | . . . . . . . . . . . Robot Schematics Acquired . | . . . . . . . . . . . Robots Built . | . . . . . . . . . . . Authchips . | . . . . . . . . . . . Time . | . . . . . . . . . . . Total Robot Build Rating . | . . . . . . . . . . . Part Schematics Acquired . | . . . . . . . . . . . Parts Built . | . . . . . . . . . . . Authchips . | . . . . . . . . . . . Time . | . . . . . . . . . . . Total Part Build Rating . | . . . . . . . . . . . Parts Repaired . | . . . . . . . . . . . Time . | . . . . . . . . . . . Parts Recycled . | . . . . . . . . . . . Recycled Matter . | . . . . . . . . . . . Retrieved Matter . | . . . . . . . . . . . Retrieved Components 9 | . . . . . . . 9 . . . Parts Scanalyzed . | . . . . . . . . . . . Part Schematics Acquired . | . . . . . . . . . . . Parts Damaged . | . . . . . . . . . . . Bothacking | -11 -10 -9 -8 -7 -7 -7 -6 -5 -5 -5 ------------ Run | Yrd Mat Mat Mat Fac Low Low Fac Fac Was Fac Used RIF Installer . | . . . . . . . . . . . Robots Hacked 1 | . . . . . . . 1 . . . Non-combat 1 | . . . . . . . 1 . . . Combat . | . . . . . . . . . . . Robot Hacks Applied 4 | . . . . . . . 4 . . . parse_system 1 | . . . . . . . 1 . . . no_distress 1 | . . . . . . . 1 . . . find_fabricator 1 | . . . . . . . 1 . . . find_dsf 1 | . . . . . . . 1 . . . Relay Couplers Released . | . . . . . . . . . . . Fabnet Peak Effective % . | . . . . . . . . . . . Robots Rewired . | . . . . . . . . . . . Allies Hacked . | . . . . . . . . . . . Hacks Repelled . | . . . . . . . . . . . Allies | -11 -10 -9 -8 -7 -7 -7 -6 -5 -5 -5 -------- Run | Yrd Mat Mat Mat Fac Low Low Fac Fac Was Fac Total Allies . | . . . . . . . . . . . Largest Group . | . . . . . . . . . . . Highest-Rated Group . | . . . . . . . . . . . Highest-Rated Ally . | . . . . . . . . . . . Total Orders . | . . . . . . . . . . . Ally Attacks . | . . . . . . . . . . . Total Damage . | . . . . . . . . . . . Kills . | . . . . . . . . . . . Allies Corrupted . | . . . . . . . . . . . Allies Melted . | . . . . . . . . . . . Intel | -11 -10 -9 -8 -7 -7 -7 -6 -5 -5 -5 ------- Run | Yrd Mat Mat Mat Fac Low Low Fac Fac Was Fac Robot Analysis Total 1 | . . . . 1 . . . . . . Derelict Logs Recovered 2 | . . . . . 1 1 . . . . Drone Launches . | . . . . . . . . . . . Drone Recoveries . | . . . . . . . . . . . Exploration | -11 -10 -9 -8 -7 -7 -7 -6 -5 -5 -5 ------------- Run | Yrd Mat Mat Mat Fac Low Low Fac Fac Was Fac Turns Passed 6522 | 49 294 759 141 873 266 43 3350 161 45 541 Spaces Moved 4860 | 35 155 316 111 856 299 99 2129 79 89 692 Core 32 | 16 . . . 11 . . . . . 5 Treads 584 | 19 155 316 36 22 . . 26 . . 10 Legs 749 | . . . . . . . 670 79 . . Wheels 915 | . . . . 344 44 . 527 . . . Hover 430 | . . . . . . . 430 . . . Flight 2150 | . . . 75 479 255 99 476 . 89 677 Fastest Speed 23 | 50 160 160 50 24 43 43 23 190 26 26 Average Speed 96 | 109 160 160 86 60 50 43 118 190 26 54 Slowest Speed 510 | 160 160 160 160 250 142 43 510 190 36 400 Overloaded Moves . | . . . . . . . . . . . Propulsion Burnouts . | . . . . . . . . . . . Robots Hopped 1 | . . . 1 . . . . . . . Cave-ins Triggered 1 | . . . . 1 . . . . . . Exploration Rate (%) 28 | 3 33 30 13 16 52 19 51 4 76 18 Regions Visited 10 Branch Regions 2 Pre-discovered Areas . | . . . . . . . . . . . Known Exits Taken 4 | . 1 1 1 . . . 1 . . . Unknown Exits Taken 4 | 1 . . . 1 1 1 . . . . Scrap Searched . | . . . . . . . . . . . Spaces Dug 33 | . . . . 2 . . 28 3 . . Terrain Destroyed 236 | . . 36 12 85 . . 76 3 . 24 Melee 31 | . . . . 2 . . 28 1 . . Projectile 15 | . . . . . . . 5 2 . 8 AOE 190 | . . 36 12 83 . . 43 . . 16 Terrain Rammed . | . . . . . . . . . . . Walls Destroyed . | . . . . . . . . . . . Machines Disabled . | . . . . . . . . . . . Actions | -11 -10 -9 -8 -7 -7 -7 -6 -5 -5 -5 --------- Run | Yrd Mat Mat Mat Fac Low Low Fac Fac Was Fac Total 6186 | 46 181 520 148 1092 412 98 2697 87 111 794 Wait 586 | . . 167 9 114 95 . 181 . . 20 Move 4849 | 34 154 315 108 855 298 98 2128 79 88 692 Hop 1 | . . . 1 . . . . . . . Pick Up 100 | 6 8 2 4 10 3 . 59 2 . 6 Fast Attach 53 | . . 3 3 13 6 . 15 . 1 12 Attach 83 | 6 2 . 5 10 1 . 36 2 6 15 Detach 18 | . . . 2 2 . . 8 . . 6 Swap 60 | . 1 4 5 13 1 . 28 . 6 2 Drop 76 | . 4 4 7 9 8 . 29 . 10 5 Fire 119 | . 12 25 4 25 . . 29 3 . 21 Melee 209 | . . . . 41 . . 152 1 . 15 Ram . | . . . . . . . . . . . Kick . | . . . . . . . . . . . Crush . | . . . . . . . . . . . Escape Stasis 32 | . . . . . . . 32 . . . Rewire . | . . . . . . . . . . . Trap . | . . . . . . . . . . . Miscellaneous . | . . . . . . . . . . . Route ------- -11/Scrapyard -10/Materials -9/Materials (discovered 3 exits: *Mat x3) -8/Materials -7/Factory -7/Lower Caves -7/Lower Caves -6/Factory (discovered 2 exits: *Fac x2) -5/Factory -5/Waste -5/Factory History --------- Turn | Location | Event 7 | -11/Scrapyard | Discovered new exit (range 15) 50 | -11/Scrapyard | Entered Materials 305 | -10/Materials | Build established: Mutant 331 | -10/Materials | Discovered new exit (range 9) 342 | -10/Materials | Identified exit to Materials 344 | -10/Materials | Entered another Materials area 344 | -9/Materials | Evolved 2 slots: Propulsion x2 1007 | -9/Materials | Identified exit to Materials 1103 | -9/Materials | Entered another Materials area 1103 | -8/Materials | Evolved 2 slots: Utility x2 1147 | -8/Materials | Destroyed 7 combat bots 1232 | -8/Materials | Discovered new exit (range 16) 1244 | -8/Materials | Identified exit to Factory 1244 | -8/Materials | Entered Factory 1244 | -7/Factory | Evolved 2 slots: Power x1, Propulsion x1 1632 | -7/Factory | Crushed by falling debris 1663 | -7/Factory | Lost 10 parts (1p5n2u2w) 1955 | -7/Factory | Build established: Hacker-Mutant 2034 | -7/Factory | Lost 4 parts (1p1n2u) 2095 | -7/Factory | Discovered new exit (range 10) 2117 | -7/Factory | Entered Lower Caves 2222 | -7/Lower Caves | Learned Factory emergency access door positions 2377 | -7/Lower Caves | Discovered new exit (range 14) 2383 | -7/Lower Caves | Entered another Lower Caves area 2390 | -7/Lower Caves | Learned 4 Factory zone layouts 2421 | -7/Lower Caves | Discovered new exit (range 13) 2426 | -7/Lower Caves | Entered Factory 2426 | -6/Factory | Evolved 2 slots: Utility x2 2427 | -6/Factory | Identified exit to Factory 2478 | -6/Factory | Build established: Derelict-Mutant 2516 | -6/Factory | Spotted B-75 Beast 3146 | -6/Factory | Lost 5 parts (1p2n1u1w) 3256 | -6/Factory | Lost 4 parts (2n1u1w) 3394 | -6/Factory | Build established: Scavenger-Mutant 3908 | -6/Factory | Core integrity fell below 50% 5729 | -6/Factory | Discovered exit to Factory (range 9) 5776 | -6/Factory | Entered another Factory area 5776 | -5/Factory | Evolved 2 slots: Utility x2 5807 | -5/Factory | Lost 5 parts (1p4n) 5937 | -5/Factory | Sucked down chute 5937 | -5/Factory | Entered Waste 5952 | -5/Waste | EMP discharged 5963 | -5/Waste | Spotted C-40 Crusher 5963 | -5/Waste | Spotted C-40 Crusher 5966 | -5/Waste | Spotted C-40 Crusher 5967 | -5/Waste | Spotted C-40 Crusher 5968 | -5/Waste | Spotted C-40 Crusher 5973 | -5/Waste | Spotted C-40 Crusher 5973 | -5/Waste | Crushed by Compactor (1 part destroyed, 1 dropped) 5974 | -5/Waste | Discovered new exit (range 16) 5982 | -5/Waste | Entered Factory 6078 | -5/Factory | Lost 3 parts (1p2u) 6084 | -5/Factory | Spotted B-75 Beast 6146 | -5/Factory | Lost 8 parts (3n3u2w) 6273 | -5/Factory | Lost 3 parts (1p1n1u) 6485 | -5/Factory | Core integrity fell below 50% 6496 | -5/Factory | System corruption reached 10% 6514 | -5/Factory | Core integrity fell below 20% 6523 | -5/Factory | Destroyed by H-66 Slayer with Gauss Rifle Last Messages --------------- Penetrated by Slug. Hcp. Matter Pod destroyed. Hcp. Battery destroyed. P-70 Sage resets H-66 Slayer, system corruption cleaned. Lrn. Proton Cannon destroyed. QDNSCRRAQ,XWHG0R/%3IVG#C0F%MZCH Penetrated by Slug. P-70 Sage resets P-80 Master, system corruption cleaned. Penetrated by Slug. Cld. Cesium-ion Thruster destroyed. Penetrated by Slug. Com. Battery destroyed. Neutrino Core destroyed. Slug penetrates Wall. P-70 Sage resets P-70 Sage, system corruption cleaned. Slug penetrates Wall. [Achievement: Just Browsing] Map ----- +----------------------------------------------------+ | ????????????????????????????????"""""""?????""?""" | | ????????????????????????????????"""""""?????"Y???? | | ????????????????????????????????"""""""?????""?""" | | ????????????????????????????????"""""""?????""?""" | | ????????????????????????????????????????????""?""" | | ?????????????????????????????????????????????????? | | ???????????????????????????###???????????????????? | | ??????????????????????????? ???????????????????? | | ??????????????????????????? ???? ????????????? | | ??????????????????????????? """? ]/???"""?"""? | | ??????????????????????????? """ ?"""?"""? | | ??????????????????????????? """ ?"""?""" | | ???????????????????????????# """ """?""" | | ???????????????????????????# ???? | | ???????????????????????????# ???!! | | ???????????????????????????# / ???!| | | ???????????????????????????# ????? | | ???????????????????""?"""??# ????????? | | ??????????????????"G??"""??# ???????????? | | ???????????????????""?"""??# #?????????????? | | ???????????????????????????# #?????????????? | | ?????????????????########### % #?????????????? | | ?????????????????# p + ####?????????????? | | ?????????????????# m p# "#???????????????? | | ?????????????????# ph #% #+#????????????????? | | ?????????????????# @ # #??????????????????? | | ?????????????????########### #????#?????????????? | | ???????????????############# #?? #?????????????? | | ???????????????# # = #?????????????? | | ???????????????# + #?????????????? | | ???????????????# # " !#?????????????? | | ???????????????## ## #?T #?????????????? | | ????????????????# ## #?"??#??########???? | | ????????????????# ## #???????# #???? | | ????????????????# ## #???????# "" #???? | | ????????????????# ## #???????# ""S #???? | | ????????????????# ## #???????# "" #???? | | ????????????????# ## #???????#! #???? | | ????????????#####+## #####???# #???? | | ????????????# # #T ########+####### | | ????????????# """" # + | | ????????????# """" # #### | | ????????????# """" # #??# | | ?????+??????# """" # #??# | | ????? ??????# # #??# | | ??# ########+### #??# | | #?# #??# | | ??# ######## #?# #??# | | ????? ?????????# ### #??# | | ????# #????????# #??# | +----------------------------------------------------+ Best States ------------- Heat Dissipation 54 Energy Generation 28 Energy Capacity 600 Matter Stores 496 Matter Capacity 500 Sight Range 16 Robot Scan Range 15 Terrain Scan Density 10 ECM Strength 1 Jamming Range 14 Power Amplification 20 Armor Coverage 225 Resistance: KI 20 Resistance: TH 20 Resistance: EX 20 Resistance: EM 20 Resistance: I 20 Resistance: S 20 Resistance: P 20 Melee Speed Boost 20 Phase Shifting 5 Evasion (%) 75 Targeting Accuracy 5 Melee Accuracy 11 Recoil Reduction 2 Offensive Hacking 22 Defensive Hacking 10 Item Schematics ----------------- None Robot Schematics ------------------ None Fabricated ------------ Nothing Alien Tech Used ----------------- None Achievements -------------- Dodgeball, But With Guns Just Browsing Unlikely Earthworm Challenges ------------ None Game ------ Seed AntimatterLobotomyNetwork Manual? 0 Play Time 02:33:32 Cumulative 21.9 hours Start 2024.04.09 @ 21:44:25 End 2024.04.10 @ 00:27:55 Sessions 1 Manual Loads 0 Difficulty Adventurer Special Mode None Game No. 18 Rogue 0 Adventurer 18 Explorer 0 Win Type - Total 0 Types 0/0/0/0/0/0/0/0/0 Lore% 11 Gallery% 26 Achievement% 22 Wizard Run 0 Options --------- Layout 1 ASCII 0 Keyboard 0 Movement Mouse Keybinds 0 Fullscreen 0 Font 20/SmallcapsGlow Map View 50x35 Zoom Use 0% Tactical HUD 0 Map Filters NONE Filters NONE Steam 1 RUN: ccf8dbf0-71b2-4310-9879-9356f5cddb37